[Event "*** Titled Tuesday Blitz"]
[Site "Chess.com"]
[Date "2020.05.19"]
[Round "9"]
[White "VojtechPlat"]
[Black "DaggiGretarsson"]
[Result "1-0"]
[WhiteElo "2880"]
[BlackElo "2619"]
[TimeControl "180+1"]
[EndTime "13:46:54 PDT"]
[Termination "VojtechPlat won on time"]

1. e4 {[%clk 0:03:00.9]} 1... g6 {[%clk 0:02:59.6]} 2. Nf3 {[%clk 0:02:57.4]}
2... Bg7 {[%clk 0:02:59.6]} 3. d4 {[%clk 0:02:56.6]} 3... d6 {[%clk 0:02:59.3]}
4. Bd3 {[%clk 0:02:56.7]} 4... Nf6 {[%clk 0:02:58.1]} 5. Qe2 {[%clk 0:02:56.4]}
5... O-O {[%clk 0:02:56.5]} 6. e5 {[%clk 0:02:56.4]} 6... dxe5 {[%clk
0:02:53.1]} 7. dxe5 {[%clk 0:02:56.4]} 7... Nd5 {[%clk 0:02:53]} 8. h3 {[%clk
0:02:53.4]} 8... Na6 {[%clk 0:02:34.5]} 9. c3 {[%clk 0:02:51.7]} 9... Nc5 {[%clk
0:02:33.1]} 10. Bc2 {[%clk 0:02:48.6]} 10... b6 {[%clk 0:02:32.2]} 11. a3 {[%clk
0:02:38.5]} 11... Ba6 {[%clk 0:01:38.1]} 12. c4 {[%clk 0:02:38.1]} 12... Ne6
{[%clk 0:01:37.8]} 13. O-O {[%clk 0:02:35.7]} 13... Ndf4 {[%clk 0:01:27.9]} 14.
Qe4 {[%clk 0:02:35.4]} 14... Bh6 {[%clk 0:01:21.1]} 15. Bxf4 {[%clk 0:02:12.6]}
15... Nxf4 {[%clk 0:01:13.9]} 16. Nc3 {[%clk 0:02:12.6]} 16... Qc8 {[%clk
0:01:10.6]} 17. Rfd1 {[%clk 0:01:42.1]} 17... Bb7 {[%clk 0:00:51.9]} 18. Nd5
{[%clk 0:01:41.3]} 18... Re8 {[%clk 0:00:51.6]} 19. Ba4 {[%clk 0:01:24]} 19...
b5 {[%clk 0:00:50.9]} 20. Bxb5 {[%clk 0:01:21.4]} 20... c6 {[%clk 0:00:47.5]}
21. Nxf4 {[%clk 0:01:19.6]} 21... cxb5 {[%clk 0:00:47.4]} 22. Nd5 {[%clk
0:01:12.8]} 22... bxc4 {[%clk 0:00:44.1]} 23. Qh4 {[%clk 0:01:12.5]} 23... Bxd5
{[%clk 0:00:38.6]} 24. Rxd5 {[%clk 0:01:12]} 24... Bg7 {[%clk 0:00:38.7]} 25.
Rc1 {[%clk 0:01:10.6]} 25... Qb7 {[%clk 0:00:37.1]} 26. Rd2 {[%clk 0:01:10.3]}
26... Rad8 {[%clk 0:00:34.3]} 27. Rdc2 {[%clk 0:00:49.4]} 27... Rc8 {[%clk
0:00:31.4]} 28. e6 {[%clk 0:00:48.3]} 28... f5 {[%clk 0:00:23.2]} 29. Ng5 {[%clk
0:00:41.8]} 29... h6 {[%clk 0:00:18.5]} 30. Nf7 {[%clk 0:00:41.9]} 30... Qd5
{[%clk 0:00:17.8]} 31. Nxh6+ {[%clk 0:00:39.8]} 31... Bxh6 {[%clk 0:00:16.5]}
32. Qxh6 {[%clk 0:00:40]} 32... Qxe6 {[%clk 0:00:16.8]} 33. Qf4 {[%clk
0:00:39.9]} 33... Rb8 {[%clk 0:00:14.2]} 34. Rxc4 {[%clk 0:00:34.3]} 34... Rxb2
{[%clk 0:00:13.5]} 35. Rc6 {[%clk 0:00:34.3]} 35... Qf7 {[%clk 0:00:12.1]} 36.
Qg5 {[%clk 0:00:32.3]} 36... Kg7 {[%clk 0:00:10.3]} 37. h4 {[%clk 0:00:27.2]}
37... Re2 {[%clk 0:00:01.8]} 38. R1c3 {[%clk 0:00:19.8]} 38... Re6 {[%clk
0:00:02.2]} 39. Rc7 {[%clk 0:00:19.6]} 39... Qf6 {[%clk 0:00:01.5]} 40. Qxf6+
{[%clk 0:00:18.1]} 1-0

[Event "*** Titled Tuesday Blitz"]
[Site "Chess.com"]
[Date "2020.05.19"]
[Round "9"]
[White "Sjakkerntobi"]
[Black "Nellichka"]
[Result "0-1"]
[WhiteElo "2261"]
[BlackElo "2005"]
[TimeControl "180+1"]
[EndTime "13:46:54 PDT"]
[Termination "Nellichka won by checkmate"]

1. e4 {[%clk 0:03:00.9]} 1... e6 {[%clk 0:02:58.8]} 2. d4 {[%clk 0:02:58.7]}
2... d5 {[%clk 0:02:57.8]} 3. Nd2 {[%clk 0:02:59.1]} 3... a5 {[%clk 0:02:54.6]}
4. Ngf3 {[%clk 0:02:54.3]} 4... Nf6 {[%clk 0:02:52.2]} 5. e5 {[%clk 0:02:49.9]}
5... Nfd7 {[%clk 0:02:50.8]} 6. Bd3 {[%clk 0:02:45.6]} 6... c5 {[%clk
0:02:49.3]} 7. c3 {[%clk 0:02:42.3]} 7... Nc6 {[%clk 0:02:48.6]} 8. a3 {[%clk
0:02:37.8]} 8... Qb6 {[%clk 0:02:45.9]} 9. O-O {[%clk 0:02:35.9]} 9... cxd4
{[%clk 0:02:41.9]} 10. cxd4 {[%clk 0:02:36.8]} 10... Nxd4 {[%clk 0:02:41]} 11.
Nxd4 {[%clk 0:02:37.4]} 11... Qxd4 {[%clk 0:02:39.4]} 12. Nf3 {[%clk 0:02:38.3]}
12... Qb6 {[%clk 0:02:37.4]} 13. Be3 {[%clk 0:02:37.9]} 13... Bc5 {[%clk
0:02:35.1]} 14. Bxc5 {[%clk 0:02:33.8]} 14... Nxc5 {[%clk 0:02:34.2]} 15. Bc2
{[%clk 0:02:33]} 15... a4 {[%clk 0:02:32.6]} 16. h4 {[%clk 0:02:31.3]} 16... Nb3
{[%clk 0:02:29.6]} 17. Rb1 {[%clk 0:02:29.5]} 17... Bd7 {[%clk 0:02:28.9]} 18.
Re1 {[%clk 0:02:20]} 18... Rc8 {[%clk 0:02:23.8]} 19. Ng5 {[%clk 0:02:06.8]}
19... h6 {[%clk 0:02:09.5]} 20. Nf3 {[%clk 0:01:10.2]} 20... Rc4 {[%clk
0:01:55.3]} 21. Bd3 {[%clk 0:01:06.5]} 21... Rg4 {[%clk 0:01:51.9]} 22. Qe2
{[%clk 0:00:52.4]} 22... Nd4 {[%clk 0:01:48.4]} 23. Nxd4 {[%clk 0:00:50.8]}
23... Qxd4 {[%clk 0:01:41.5]} 24. Rbc1 {[%clk 0:00:51.7]} 24... O-O {[%clk
0:01:13.2]} 25. h5 {[%clk 0:00:38.5]} 25... f6 {[%clk 0:01:05.1]} 26. exf6
{[%clk 0:00:18.8]} 26... Rxf6 {[%clk 0:01:04.1]} 27. Rc7 {[%clk 0:00:19.5]}
27... Rgf4 {[%clk 0:00:54.7]} 28. Rf1 {[%clk 0:00:17.6]} 28... Bc6 {[%clk
0:00:48.1]} 29. Rc8+ {[%clk 0:00:17.5]} 29... Kf7 {[%clk 0:00:40.9]} 30. Bg6+
{[%clk 0:00:14.9]} 30... Ke7 {[%clk 0:00:39.5]} 31. Re8+ {[%clk 0:00:14.8]}
31... Bxe8 {[%clk 0:00:38.2]} 32. Bxe8 {[%clk 0:00:14.3]} 32... Kxe8 {[%clk
0:00:37.6]} 33. Qb5+ {[%clk 0:00:14.4]} 33... Kf7 {[%clk 0:00:33.4]} 34. Qe2
{[%clk 0:00:14.3]} 34... Re4 {[%clk 0:00:26.8]} 35. Qb5 {[%clk 0:00:14]} 35...
Qc4 {[%clk 0:00:21.3]} 36. Qd7+ {[%clk 0:00:13.9]} 36... Kg8 {[%clk 0:00:20.6]}
37. Qe8+ {[%clk 0:00:14.2]} 37... Kh7 {[%clk 0:00:19.4]} 38. f3 {[%clk
0:00:13.1]} 38... Qc5+ {[%clk 0:00:17.1]} 39. Kh1 {[%clk 0:00:13.1]} 39... Rc4
{[%clk 0:00:15.7]} 40. Re1 {[%clk 0:00:13.3]} 40... Rh4# {[%clk 0:00:14.3]} 0-1

[Event "*** Titled Tuesday Blitz"]
[Site "Chess.com"]
[Date "2020.05.19"]
[Round "9"]
[White "Munkhzul_Turmunkh"]
[Black "CHESSMASTER759"]
[Result "1/2-1/2"]
[WhiteElo "2523"]
[BlackElo "2663"]
[TimeControl "180+1"]
[EndTime "13:47:05 PDT"]
[Termination "Game drawn - insufficient material"]

1. e4 {[%clk 0:03:00.9]} 1... d6 {[%clk 0:02:59.8]} 2. d4 {[%clk 0:03:00.5]}
2... Nf6 {[%clk 0:02:59.8]} 3. Nc3 {[%clk 0:02:58.7]} 3... e5 {[%clk 0:03:00.3]}
4. Nf3 {[%clk 0:02:53.4]} 4... Nbd7 {[%clk 0:02:59.5]} 5. Bc4 {[%clk 0:02:49.7]}
5... Be7 {[%clk 0:02:59.2]} 6. O-O {[%clk 0:02:46.5]} 6... O-O {[%clk
0:02:59.6]} 7. Re1 {[%clk 0:02:42.2]} 7... c6 {[%clk 0:02:59.3]} 8. a4 {[%clk
0:02:39.5]} 8... a5 {[%clk 0:02:59.9]} 9. h3 {[%clk 0:02:35.1]} 9... Nb6 {[%clk
0:03:00.5]} 10. Ba2 {[%clk 0:02:30.1]} 10... Nfd7 {[%clk 0:03:00.4]} 11. Be3
{[%clk 0:02:25.5]} 11... exd4 {[%clk 0:03:00.9]} 12. Nxd4 {[%clk 0:02:18.5]}
12... Nc5 {[%clk 0:03:01.2]} 13. Qd2 {[%clk 0:02:09.9]} 13... Nbxa4 {[%clk
0:03:00.6]} 14. Nxa4 {[%clk 0:02:08.2]} 14... Nxa4 {[%clk 0:02:59.7]} 15. Bxf7+
{[%clk 0:02:08.8]} 15... Rxf7 {[%clk 0:02:58.3]} 16. Rxa4 {[%clk 0:02:09.7]}
16... d5 {[%clk 0:02:58.9]} 17. exd5 {[%clk 0:02:00.8]} 17... Qxd5 {[%clk
0:02:58.4]} 18. Nf3 {[%clk 0:01:53.5]} 18... Qxd2 {[%clk 0:02:55.3]} 19. Bxd2
{[%clk 0:01:54.4]} 19... Bf6 {[%clk 0:02:48.7]} 20. b4 {[%clk 0:01:41.7]} 20...
b6 {[%clk 0:02:35.5]} 21. bxa5 {[%clk 0:01:32.8]} 21... bxa5 {[%clk 0:02:34.9]}
22. Rxa5 {[%clk 0:01:26.8]} 22... Rxa5 {[%clk 0:02:33.8]} 23. Bxa5 {[%clk
0:01:27.7]} 23... Bf5 {[%clk 0:02:29.2]} 24. c3 {[%clk 0:01:21.9]} 24... h6
{[%clk 0:02:26.3]} 25. Re8+ {[%clk 0:01:13.6]} 25... Kh7 {[%clk 0:02:26]} 26.
Nd4 {[%clk 0:01:09.5]} 26... Bd7 {[%clk 0:02:14.2]} 27. Re3 {[%clk 0:01:03.7]}
27... Kg6 {[%clk 0:02:11.3]} 28. Bb4 {[%clk 0:00:59.5]} 28... Kh7 {[%clk
0:02:11.1]} 29. Bd6 {[%clk 0:00:52.4]} 29... g5 {[%clk 0:02:03]} 30. f3 {[%clk
0:00:46.9]} 30... Kg6 {[%clk 0:02:02.8]} 31. Bc5 {[%clk 0:00:36]} 31... h5
{[%clk 0:02:02.3]} 32. Re4 {[%clk 0:00:31.2]} 32... g4 {[%clk 0:01:57.5]} 33.
hxg4 {[%clk 0:00:28.1]} 33... hxg4 {[%clk 0:01:58.4]} 34. fxg4 {[%clk 0:00:23]}
34... Bd8 {[%clk 0:01:45.6]} 35. Bd6 {[%clk 0:00:19.5]} 35... Bb6 {[%clk
0:01:42.8]} 36. Kh2 {[%clk 0:00:19.3]} 36... Bxd4 {[%clk 0:01:36]} 37. cxd4
{[%clk 0:00:20.2]} 37... Rf6 {[%clk 0:01:33]} 38. Be5 {[%clk 0:00:19.9]} 38...
Re6 {[%clk 0:01:33.1]} 39. Kg3 {[%clk 0:00:19.7]} 39... Be8 {[%clk 0:01:30.7]}
40. Rf4 {[%clk 0:00:19.9]} 40... Bd7 {[%clk 0:01:26.8]} 41. Rf8 {[%clk 0:00:19]}
41... c5 {[%clk 0:01:22.4]} 42. Kf4 {[%clk 0:00:15.4]} 42... cxd4 {[%clk
0:01:19.9]} 43. Bxd4 {[%clk 0:00:16.3]} 43... Bc6 {[%clk 0:01:17.5]} 44. Rg8+
{[%clk 0:00:15.9]} 44... Kf7 {[%clk 0:01:14.7]} 45. Rd8 {[%clk 0:00:13.7]} 45...
Ke7 {[%clk 0:01:11.6]} 46. Rc8 {[%clk 0:00:12.5]} 46... Kd7 {[%clk 0:01:09.3]}
47. Rf8 {[%clk 0:00:09.1]} 47... Re4+ {[%clk 0:01:06.7]} 48. Kf5 {[%clk
0:00:09.6]} 48... Rxd4 {[%clk 0:01:05.9]} 49. g5 {[%clk 0:00:10.1]} 49... Ke7
{[%clk 0:01:02.6]} 50. Rb8 {[%clk 0:00:08.7]} 50... Rd6 {[%clk 0:00:59.4]} 51.
g6 {[%clk 0:00:08.2]} 51... Rd5+ {[%clk 0:00:55.4]} 52. Kg4 {[%clk 0:00:06.8]}
52... Kf6 {[%clk 0:00:55]} 53. Rb6 {[%clk 0:00:06.3]} 53... Rc5 {[%clk 0:00:53]}
54. Kf4 {[%clk 0:00:06.5]} 54... Kxg6 {[%clk 0:00:53.1]} 55. Ke3 {[%clk
0:00:06.2]} 55... Kg5 {[%clk 0:00:52.4]} 56. Kd4 {[%clk 0:00:06.6]} 56... Rc1
{[%clk 0:00:52.5]} 57. g3 {[%clk 0:00:06.1]} 57... Kg4 {[%clk 0:00:52.7]} 58.
Rb4 {[%clk 0:00:05.5]} 58... Kxg3 {[%clk 0:00:52.7]} 59. Rc4 {[%clk 0:00:05.8]}
59... Rxc4+ {[%clk 0:00:51.4]} 60. Kxc4 {[%clk 0:00:06.2]} 1/2-1/2

[Event "*** Titled Tuesday Blitz"]
[Site "Chess.com"]
[Date "2020.05.19"]
[Round "9"]
[White "TST2014"]
[Black "Isajevsky_Anton"]
[Result "1/2-1/2"]
[WhiteElo "2574"]
[BlackElo "2442"]
[TimeControl "180+1"]
[EndTime "13:47:06 PDT"]
[Termination "Game drawn - insufficient material"]

1. d4 {[%clk 0:02:47.8]} 1... d5 {[%clk 0:02:58.2]} 2. c4 {[%clk 0:02:46.9]}
2... e6 {[%clk 0:02:58.2]} 3. Nf3 {[%clk 0:02:47.2]} 3... Nf6 {[%clk 0:02:57.7]}
4. Nc3 {[%clk 0:02:46.9]} 4... Be7 {[%clk 0:02:57.6]} 5. Bf4 {[%clk 0:02:45.8]}
5... O-O {[%clk 0:02:57.3]} 6. e3 {[%clk 0:02:46.3]} 6... Nbd7 {[%clk 0:02:57]}
7. c5 {[%clk 0:02:45.8]} 7... Nh5 {[%clk 0:02:56.5]} 8. Bd3 {[%clk 0:02:45]}
8... c6 {[%clk 0:02:54.7]} 9. O-O {[%clk 0:02:43.2]} 9... Nxf4 {[%clk 0:02:54]}
10. exf4 {[%clk 0:02:43.1]} 10... b6 {[%clk 0:02:54.4]} 11. b4 {[%clk
0:02:42.7]} 11... bxc5 {[%clk 0:02:54.6]} 12. bxc5 {[%clk 0:02:42.6]} 12... Qa5
{[%clk 0:02:54.8]} 13. Qc2 {[%clk 0:02:34.1]} 13... Ba6 {[%clk 0:02:53.5]} 14.
Bxh7+ {[%clk 0:02:32.9]} 14... Kh8 {[%clk 0:02:52]} 15. Bd3 {[%clk 0:02:33.5]}
15... Rab8 {[%clk 0:02:49.1]} 16. Rab1 {[%clk 0:02:27.6]} 16... g6 {[%clk
0:02:47.8]} 17. h4 {[%clk 0:02:22]} 17... Kg7 {[%clk 0:02:47.4]} 18. g3 {[%clk
0:02:20.6]} 18... Bxd3 {[%clk 0:02:41.6]} 19. Qxd3 {[%clk 0:02:20]} 19... Qa3
{[%clk 0:02:42.5]} 20. Qc2 {[%clk 0:02:14.8]} 20... Bf6 {[%clk 0:02:38.9]} 21.
Ne5 {[%clk 0:02:12.9]} 21... Bxe5 {[%clk 0:02:35.8]} 22. fxe5 {[%clk 0:02:13.8]}
22... a5 {[%clk 0:02:31.4]} 23. Kg2 {[%clk 0:02:02.9]} 23... Rb4 {[%clk
0:02:30.1]} 24. Rb3 {[%clk 0:01:54.8]} 24... Rxb3 {[%clk 0:02:30]} 25. Qxb3
{[%clk 0:01:49.7]} 25... Qxb3 {[%clk 0:02:30.2]} 26. axb3 {[%clk 0:01:50.6]}
26... Rb8 {[%clk 0:02:30.5]} 27. Ra1 {[%clk 0:01:32.6]} 27... Rxb3 {[%clk
0:02:28.9]} 28. Ne2 {[%clk 0:01:32.2]} 28... Rb5 {[%clk 0:02:24.5]} 29. Kf1
{[%clk 0:01:26.9]} 29... f6 {[%clk 0:02:22.7]} 30. f4 {[%clk 0:01:26.5]} 30...
Kf7 {[%clk 0:01:49.1]} 31. Ke1 {[%clk 0:01:25.6]} 31... g5 {[%clk 0:01:45]} 32.
Kd2 {[%clk 0:01:16.5]} 32... gxh4 {[%clk 0:01:44.7]} 33. gxh4 {[%clk 0:01:16.3]}
33... Kg6 {[%clk 0:01:44.4]} 34. Rg1+ {[%clk 0:01:12.6]} 34... Kh7 {[%clk
0:01:38.9]} 35. f5 {[%clk 0:01:04.8]} 35... Rb2+ {[%clk 0:01:29.4]} 36. Kd3
{[%clk 0:01:03.7]} 36... fxe5 {[%clk 0:01:28.3]} 37. fxe6 {[%clk 0:01:02.5]}
37... Nf6 {[%clk 0:01:22]} 38. dxe5 {[%clk 0:00:59.2]} 38... Ne4 {[%clk
0:01:21.6]} 39. Nd4 {[%clk 0:00:50.3]} 39... Nxc5+ {[%clk 0:01:18.1]} 40. Ke3
{[%clk 0:00:47]} 40... Rb7 {[%clk 0:01:16.7]} 41. Rc1 {[%clk 0:00:44.4]} 41...
Nb3 {[%clk 0:01:12.3]} 42. Rxc6 {[%clk 0:00:39.8]} 42... Nxd4 {[%clk 0:01:02.4]}
43. Kxd4 {[%clk 0:00:39.4]} 43... Ra7 {[%clk 0:01:02.1]} 44. Rd6 {[%clk
0:00:33.9]} 44... Kg6 {[%clk 0:00:59.5]} 45. Kxd5 {[%clk 0:00:28.7]} 45... a4
{[%clk 0:00:59]} 46. Rd7 {[%clk 0:00:24.1]} 46... Ra5+ {[%clk 0:00:58.5]} 47.
Kd6 {[%clk 0:00:17.4]} 47... Ra6+ {[%clk 0:00:54.1]} 48. Kd5 {[%clk 0:00:07.6]}
48... Ra5+ {[%clk 0:00:54.1]} 49. Ke4 {[%clk 0:00:07.6]} 49... a3 {[%clk
0:00:51.9]} 50. e7 {[%clk 0:00:06.9]} 50... Kf7 {[%clk 0:00:51.3]} 51. e6+
{[%clk 0:00:06.8]} 51... Ke8 {[%clk 0:00:50.9]} 52. Rd1 {[%clk 0:00:06.1]} 52...
a2 {[%clk 0:00:50]} 53. Ra1 {[%clk 0:00:06.6]} 53... Kxe7 {[%clk 0:00:49.8]} 54.
Kd3 {[%clk 0:00:06.9]} 54... Kxe6 {[%clk 0:00:49.6]} 55. Kc3 {[%clk 0:00:07.4]}
55... Kf5 {[%clk 0:00:49.7]} 56. Kb2 {[%clk 0:00:07.7]} 56... Kg4 {[%clk
0:00:49.7]} 57. Rxa2 {[%clk 0:00:08.4]} 57... Rxa2+ {[%clk 0:00:49.5]} 58. Kxa2
{[%clk 0:00:08.9]} 58... Kxh4 {[%clk 0:00:49.8]} 1/2-1/2

[Event "*** Titled Tuesday Blitz"]
[Site "Chess.com"]
[Date "2020.05.19"]
[Round "9"]
[White "bait_or_mate"]
[Black "Bubi6"]
[Result "0-1"]
[WhiteElo "2455"]
[BlackElo "2598"]
[TimeControl "180+1"]
[EndTime "13:47:06 PDT"]
[Termination "Bubi6 won on time"]

1. d4 {[%clk 0:03:00.9]} 1... c5 {[%clk 0:02:59.2]} 2. d5 {[%clk 0:03:00.6]}
2... e6 {[%clk 0:02:59.5]} 3. c4 {[%clk 0:02:59.7]} 3... exd5 {[%clk 0:02:59.6]}
4. cxd5 {[%clk 0:03:00.6]} 4... d6 {[%clk 0:02:59.9]} 5. Nc3 {[%clk 0:03:00.7]}
5... Ne7 {[%clk 0:03:00.8]} 6. Nf3 {[%clk 0:02:49]} 6... Ng6 {[%clk 0:02:59.9]}
7. h4 {[%clk 0:02:47.8]} 7... Nd7 {[%clk 0:02:58.5]} 8. h5 {[%clk 0:02:46.7]}
8... Nge5 {[%clk 0:02:58.8]} 9. Bf4 {[%clk 0:02:32.5]} 9... Nxf3+ {[%clk
0:02:52.9]} 10. gxf3 {[%clk 0:02:28.2]} 10... Be7 {[%clk 0:02:52.9]} 11. Qd2
{[%clk 0:02:25.2]} 11... O-O {[%clk 0:02:47.6]} 12. Rg1 {[%clk 0:02:11.9]} 12...
Bf6 {[%clk 0:02:36.8]} 13. Ne4 {[%clk 0:01:48.1]} 13... Be5 {[%clk 0:02:28.1]}
14. Bxe5 {[%clk 0:01:39.2]} 14... Nxe5 {[%clk 0:02:26.4]} 15. Qh6 {[%clk
0:01:27]} 15... Ng6 {[%clk 0:01:54.7]} 16. Qg5 {[%clk 0:01:12.3]} 16... Qxg5
{[%clk 0:01:50.9]} 17. Rxg5 {[%clk 0:01:13.2]} 17... Nf4 {[%clk 0:01:49.8]} 18.
e3 {[%clk 0:01:06.8]} 18... f6 {[%clk 0:01:45]} 19. Rg1 {[%clk 0:01:02.2]} 19...
Nxd5 {[%clk 0:01:26.6]} 20. Nxd6 {[%clk 0:00:53.4]} 20... Be6 {[%clk 0:01:12.7]}
21. Nxb7 {[%clk 0:00:46.9]} 21... Nb4 {[%clk 0:01:12.1]} 22. Kd2 {[%clk
0:00:37.9]} 22... c4 {[%clk 0:01:01.3]} 23. Nc5 {[%clk 0:00:33.4]} 23... Bf7
{[%clk 0:00:59.4]} 24. h6 {[%clk 0:00:32.9]} 24... Rfd8+ {[%clk 0:00:53.1]} 25.
Kc3 {[%clk 0:00:30.3]} 25... Nd5+ {[%clk 0:00:51.7]} 26. Kc2 {[%clk 0:00:30.7]}
26... g6 {[%clk 0:00:47.9]} 27. Rc1 {[%clk 0:00:18.5]} 27... Rac8 {[%clk
0:00:42.7]} 28. Ne4 {[%clk 0:00:17.6]} 28... c3 {[%clk 0:00:35.4]} 29. bxc3
{[%clk 0:00:14.7]} 29... f5 {[%clk 0:00:31.4]} 30. Ng5 {[%clk 0:00:13.8]} 30...
Rxc3+ {[%clk 0:00:21.2]} 31. Kd2 {[%clk 0:00:12.3]} 31... Rxc1 {[%clk
0:00:19.4]} 32. Kxc1 {[%clk 0:00:13.2]} 32... Rc8+ {[%clk 0:00:18.7]} 33. Kb2
{[%clk 0:00:13.1]} 33... Rb8+ {[%clk 0:00:18]} 34. Kc2 {[%clk 0:00:06.7]} 34...
Nb4+ {[%clk 0:00:17.9]} 35. Kd2 {[%clk 0:00:06.7]} 35... Bxa2 {[%clk 0:00:18.3]}
36. Be2 {[%clk 0:00:06.2]} 36... Rd8+ {[%clk 0:00:18.7]} 37. Kc3 {[%clk
0:00:05.9]} 37... Nd5+ {[%clk 0:00:19.2]} 38. Kb2 {[%clk 0:00:06]} 38... Nb4
{[%clk 0:00:19]} 39. Kc3 {[%clk 0:00:02.9]} 39... Rb8 {[%clk 0:00:18.6]} 40. Ra1
{[%clk 0:00:02.2]} 40... Nd5+ {[%clk 0:00:15.6]} 41. Kd4 {[%clk 0:00:02.1]}
41... Rb2 {[%clk 0:00:14.5]} 42. Bc4 {[%clk 0:00:01.8]} 42... Rd2+ {[%clk
0:00:13.3]} 0-1

[Event "*** Titled Tuesday Blitz"]
[Site "Chess.com"]
[Date "2020.05.19"]
[Round "9"]
[White "dopolian"]
[Black "Glidzhian_Gor"]
[Result "0-1"]
[WhiteElo "2344"]
[BlackElo "2459"]
[TimeControl "180+1"]
[EndTime "13:47:07 PDT"]
[Termination "Glidzhian_Gor won on time"]

1. e4 {[%clk 0:03:00.9]} 1... c5 {[%clk 0:02:58.2]} 2. Nf3 {[%clk 0:03:01.1]}
2... Nc6 {[%clk 0:02:58.5]} 3. d4 {[%clk 0:03:01.6]} 3... cxd4 {[%clk
0:02:59.4]} 4. Nxd4 {[%clk 0:03:02.3]} 4... Nf6 {[%clk 0:03:00.1]} 5. Nc3 {[%clk
0:03:02.6]} 5... d6 {[%clk 0:02:59.6]} 6. Be3 {[%clk 0:03:02.1]} 6... e5 {[%clk
0:03:00]} 7. Nf3 {[%clk 0:03:00.5]} 7... Be7 {[%clk 0:03:00.4]} 8. Bc4 {[%clk
0:03:00.1]} 8... O-O {[%clk 0:03:01.1]} 9. O-O {[%clk 0:02:57.2]} 9... a6 {[%clk
0:02:56.8]} 10. Bg5 {[%clk 0:02:50.9]} 10... Be6 {[%clk 0:02:51.1]} 11. Bb3
{[%clk 0:02:47.7]} 11... Rc8 {[%clk 0:02:47.9]} 12. Qe2 {[%clk 0:02:37.1]} 12...
Bg4 {[%clk 0:02:44.7]} 13. Be3 {[%clk 0:02:22]} 13... Nd4 {[%clk 0:02:42.7]} 14.
Bxd4 {[%clk 0:02:21.6]} 14... exd4 {[%clk 0:02:43.6]} 15. Nd5 {[%clk 0:02:20.6]}
15... Nxd5 {[%clk 0:02:42]} 16. Bxd5 {[%clk 0:02:16.4]} 16... Bf6 {[%clk
0:02:38]} 17. Rac1 {[%clk 0:02:03.1]} 17... Qb6 {[%clk 0:02:23.2]} 18. b3 {[%clk
0:01:53.4]} 18... Rc3 {[%clk 0:02:22]} 19. Rfd1 {[%clk 0:01:44.2]} 19... Rfc8
{[%clk 0:02:05.8]} 20. Bc4 {[%clk 0:01:16.5]} 20... Qc5 {[%clk 0:01:51.5]} 21.
Rd3 {[%clk 0:01:08]} 21... Rxd3 {[%clk 0:01:32.8]} 22. cxd3 {[%clk 0:01:02.7]}
22... d5 {[%clk 0:01:22.1]} 23. exd5 {[%clk 0:00:39.5]} 23... b5 {[%clk
0:01:22.1]} 24. h3 {[%clk 0:00:10.9]} 24... Bd7 {[%clk 0:01:14.1]} 25. Ne5
{[%clk 0:00:02.8]} 25... Bxe5 {[%clk 0:00:50]} 26. Qxe5 {[%clk 0:00:03.7]} 26...
bxc4 {[%clk 0:00:49.4]} 27. Rxc4 {[%clk 0:00:04.6]} 27... Qf8 {[%clk 0:00:49.4]}
28. d6 {[%clk 0:00:04.5]} 28... Rxc4 {[%clk 0:00:46.5]} 29. bxc4 {[%clk
0:00:04.2]} 29... h6 {[%clk 0:00:44.1]} 30. Qxd4 {[%clk 0:00:04.6]} 30... Qb8
{[%clk 0:00:43.7]} 31. c5 {[%clk 0:00:04.1]} 31... Bc6 {[%clk 0:00:43.8]} 32.
Qc4 {[%clk 0:00:02.5]} 32... a5 {[%clk 0:00:35.4]} 33. d4 {[%clk 0:00:02.3]}
33... Qb7 {[%clk 0:00:34.4]} 34. f3 {[%clk 0:00:01.4]} 34... Qb1+ {[%clk
0:00:32.5]} 35. Kh2 {[%clk 0:00:01.3]} 35... Qf5 {[%clk 0:00:30.6]} 36. Qa6
{[%clk 0:00:01.3]} 36... Qf4+ {[%clk 0:00:30.1]} 37. Kg1 {[%clk 0:00:01.5]}
37... Qxd4+ {[%clk 0:00:30.1]} 38. Kh1 {[%clk 0:00:02.2]} 38... Qd5 {[%clk
0:00:12.1]} 39. Qc8+ {[%clk 0:00:02.4]} 39... Kh7 {[%clk 0:00:12.3]} 40. Qc7
{[%clk 0:00:02.2]} 40... a4 {[%clk 0:00:12]} 41. Kh2 {[%clk 0:00:01.8]} 41... a3
{[%clk 0:00:12]} 42. h4 {[%clk 0:00:01.8]} 42... h5 {[%clk 0:00:12]} 43. g3
{[%clk 0:00:01.9]} 43... Qxf3 {[%clk 0:00:11.5]} 0-1